fUST/lending_fUST_20250604
["ID","MTS","AMOUNT","RATE_DAILY","PERIOD"]
[364230857,1749046247497,-431.06932132,0.00016986,2]
[364230859,1749046247514,-440.0,0.00016986,2]
[364230861,1749046247524,-440.0,0.00016986,2]
[364230862,1749046247534,-325.98725003,0.00016986,2]
[364230864,1749046247544,-429.65694276,0.00016986,2]
[364230865,1749046247554,-440.0,0.00016986,2]
[364230866,1749046247564,-440.0,0.00016986,2]
[364230867,1749046247575,-423.11681066,0.00016986,2]
[364230868,1749046247585,-299.33182109,0.00016986,2]
[364230869,1749046247594,-346.88039715,0.00016986,2]
[364230870,1749046247604,-391.70398742,0.00016986,2]
[364230871,1749046247614,-473.66073691,0.00016986,2]
[364230872,1749046247624,-422.10676314,0.00016986,2]
[364230873,1749046247633,-440.0,0.00016986,2]
[364230874,1749046247643,-500.0,0.00016986,2]
[364230875,1749046247653,-291.38003272,0.00016986,2]
[364230876,1749046247663,-440.0,0.00016986,2]
[364230877,1749046247673,-440.0,0.00016986,2]
[364230878,1749046247683,-440.0,0.00016986,2]
[364230879,1749046247692,-410.0,0.00016986,2]
[364230880,1749046247702,-545.55,0.00016986,2]
[364230881,1749046247712,-410.0,0.00016986,2]
[364230882,1749046247722,-426.74649996,0.00016986,2]
[364230883,1749046247731,-395.21672144,0.00016986,2]
[364230884,1749046247928,-410.0,0.00016986,2]
[364230885,1749046247949,-245.4318861,0.00016986,2]
[364230886,1749046247960,-440.0,0.00016986,2]
[364230887,1749046247970,-440.0,0.00016986,2]
[364230888,1749046247980,-568.4,0.00016986,2]
[364230889,1749046247990,-417.68096546,0.00016986,2]
[364230890,1749046248000,-430.0,0.00016986,2]
[364230891,1749046248009,-430.0,0.00016986,2]
[364230892,1749046248019,-358.24258147,0.00016986,2]
[364230893,1749046248029,-433.26325767,0.00016986,2]
[364230894,1749046248039,-410.0,0.00016986,2]
[364230895,1749046248049,-410.0,0.00016986,2]
[364230896,1749046248059,-410.0,0.00016986,2]
[364230897,1749046248068,-338.70098202,0.00016986,2]
[364230898,1749046248080,-440.0,0.00016986,2]
[364230899,1749046248089,-440.0,0.00016986,2]
[364230900,1749046248099,-434.02420096,0.00016986,2]
[364230901,1749046248108,-440.0,0.00016986,2]
[364230902,1749046248118,-440.0,0.00016986,2]
[364230903,1749046248128,-490.42,0.00016986,2]
[364230904,1749046248138,-440.0,0.00016986,2]
[364230905,1749046248148,-1755.2,0.00016986,2]
[364230906,1749046248158,-440.0,0.00016986,2]
[364230907,1749046248168,-306.92071621,0.00016986,2]
[364230908,1749046248177,-435.53304487,0.00016986,2]
[364230910,1749046248187,-410.0,0.00016986,2]
[364230912,1749046248197,-504.12,0.00016986,2]
[364230914,1749046248207,-440.0,0.00016986,2]
[364230916,1749046248219,-953.59,0.00016986,2]
[364230918,1749046248229,-611.02,0.00016986,2]
[364230920,1749046248242,-420.0,0.00016986,2]
[364230922,1749046248252,-440.0,0.00016986,2]
[364230924,1749046248261,-440.0,0.00016986,2]
[364230925,1749046248271,-930.87,0.00016986,2]
[364230927,1749046248282,-6729.0,0.00016986,2]
[364230929,1749046248291,-461.21,0.00016986,2]
[364230931,1749046248300,-1855.95,0.00016986,2]
[364230933,1749046248312,-1175.53,0.00016986,2]
[364230935,1749046248323,-2930.48,0.00016986,2]
[364230937,1749046248333,-430.0,0.00016986,2]
[364230939,1749046248342,-717.18,0.00016986,2]
[364230941,1749046248352,-689.2,0.00016986,2]
[364230943,1749046248361,-2279.76,0.00016986,2]
[364230945,1749046248370,-420.0,0.00016986,2]
[364230947,1749046248380,-430.0,0.00016986,2]
[364230949,1749046248390,-2673.95,0.00016986,2]
[364230951,1749046248400,-271.3510758,0.00016986,2]
[364230953,1749046248410,-420.0,0.00016986,2]
[364230955,1749046248420,-440.0,0.00016986,2]
[364230957,1749046248430,-440.0,0.00016986,2]
[364230959,1749046248441,-440.0,0.00016986,2]
[364230961,1749046248452,-359.2384521,0.00016986,2]
[364230963,1749046248462,-440.0,0.00016986,2]
[364230965,1749046248471,-467.41,0.00016986,2]
[364230966,1749046248481,-420.0,0.00016986,2]
[364230969,1749046248492,-440.0,0.00016986,2]
[364230970,1749046248502,-440.0,0.00016986,2]
[364230972,1749046248511,-570.25,0.00016986,2]
[364230974,1749046248521,-4255.51,0.00016986,2]
[364230976,1749046248531,-859.44,0.00016986,2]
[364230978,1749046248542,-440.0,0.00016986,2]
[364230980,1749046248553,-440.0,0.00016986,2]
[364230982,1749046248563,-440.0,0.00016986,2]
[364230985,1749046248576,-420.0,0.00016986,2]
[364230986,1749046248587,-1216.99,0.00016986,2]
[364230988,1749046248597,-440.0,0.00016986,2]
[364230990,1749046248607,-420.0,0.00016986,2]
[364230992,1749046248618,-420.0,0.00016986,2]
[364230995,1749046248628,-805.47,0.00016986,2]
[364230996,1749046248638,-1432.08,0.00016986,2]
[364230998,1749046248648,-894.27,0.00016986,2]
[364231000,1749046248658,-807.2,0.00016986,2]
[364231002,1749046248669,-420.0,0.00016986,2]
[364231004,1749046248679,-2454.92,0.00016986,2]
[364231006,1749046248688,-440.0,0.00016986,2]
[364231008,1749046248698,-440.0,0.00016986,2]
[364231010,1749046248709,-440.0,0.00016986,2]
[364231012,1749046248719,-440.0,0.00016986,2]
[364231014,1749046248728,-440.0,0.00016986,2]
[364231016,1749046248738,-440.0,0.00016986,2]
[364231018,1749046248748,-500.0,0.00016986,2]
[364231020,1749046248758,-1000.0,0.00017021,2]
[364231022,1749046248768,-372.48068192,0.00017021,2]
[364231024,1749046248777,-817.73800237,0.00017021,2]
[364231026,1749046248787,-440.0,0.0001726,2]
[364231028,1749046248797,-440.0,0.0001726,2]
[364231030,1749046248807,-440.0,0.0001726,2]
[364231032,1749046248817,-536.35,0.0001726,2]
[364231034,1749046248831,-440.0,0.0001726,2]
[364231036,1749046248841,-440.0,0.0001726,2]
[364231038,1749046248851,-440.0,0.0001726,2]
[364231040,1749046248861,-552.55741853,0.0001726,2]
[364231042,1749046248873,-443.22463869,0.0001726,2]
[364231044,1749046248883,-440.0,0.0001726,2]
[364231046,1749046248893,-410.0,0.0001726,2]
[364231048,1749046248903,-545.55,0.0001726,2]
[364231050,1749046248912,-440.0,0.0001726,2]
[364231052,1749046248922,-380.0,0.0001726,2]
[364231054,1749046248932,-568.4,0.0001726,2]
[364231056,1749046248942,-440.0,0.0001726,2]
[364231058,1749046248953,-440.0,0.0001726,2]
[364231060,1749046248963,-440.0,0.0001726,2]
[364231062,1749046248973,-440.0,0.0001726,2]
[364231064,1749046248984,-490.42,0.0001726,2]
[364231066,1749046248994,-440.0,0.0001726,2]
[364231068,1749046249004,-1755.2,0.0001726,2]
[364231070,1749046249014,-440.0,0.0001726,2]
[364231072,1749046249024,-504.12,0.0001726,2]
[364231074,1749046249034,-440.0,0.0001726,2]
[364231075,1749046249043,-953.59,0.0001726,2]
[364231078,1749046249052,-611.02,0.0001726,2]
[364231080,1749046249062,-440.0,0.0001726,2]
[364231082,1749046249076,-440.0,0.0001726,2]
[364231084,1749046249086,-930.87,0.0001726,2]
[364231086,1749046249095,-6729.0,0.0001726,2]
[364231088,1749046249105,-461.21,0.0001726,2]
[364231090,1749046249115,-1855.95,0.0001726,2]
[364231092,1749046249124,-1175.53,0.0001726,2]
[364231094,1749046249138,-2930.48,0.0001726,2]
[364231096,1749046249148,-717.18,0.0001726,2]
[364231098,1749046249157,-689.2,0.0001726,2]
[364231100,1749046249167,-2279.76,0.0001726,2]
[364231102,1749046249178,-2673.95,0.0001726,2]
[364231104,1749046249188,-440.0,0.0001726,2]
[364231106,1749046249198,-440.0,0.0001726,2]
[364231108,1749046249208,-440.0,0.0001726,2]
[364231110,1749046249219,-440.0,0.0001726,2]
[364231112,1749046249229,-467.41,0.0001726,2]
[364231113,1749046249245,-440.0,0.0001726,2]
[364231115,1749046249255,-430.0,0.0001726,2]
[364231117,1749046249265,-570.25,0.0001726,2]
[364231119,1749046249275,-4255.51,0.0001726,2]
[364231121,1749046249286,-859.44,0.0001726,2]
[364231123,1749046249296,-440.0,0.0001726,2]
[364231125,1749046249307,-440.0,0.0001726,2]
[364231127,1749046249318,-440.0,0.0001726,2]
[364231129,1749046249331,-1216.99,0.0001726,2]
[364231131,1749046249342,-440.0,0.0001726,2]
[364231133,1749046249352,-805.47,0.0001726,2]
[364231135,1749046249363,-1432.08,0.0001726,2]
[364231137,1749046249373,-894.27,0.0001726,2]
[364231139,1749046249382,-807.2,0.0001726,2]
[364231141,1749046249392,-2454.92,0.0001726,2]
[364231143,1749046249402,-440.0,0.0001726,2]
[364231145,1749046249412,-440.0,0.0001726,2]
[364231147,1749046249422,-410.0,0.0001726,2]
[364231149,1749046249431,-327.76113185,0.0001726,2]
[364231151,1749046249441,-440.0,0.0001726,2]
[364231153,1749046249451,-440.0,0.0001726,2]
[364231154,1749046249461,-1305.23655106,0.00017297,2]
[364231156,1749046249470,-1000.0,0.00017321,2]
[364231158,1749046249479,-500.0,0.00017321,2]
[364231160,1749046249489,-500.0,0.00017321,2]
[364231161,1749046249500,-1000.0,0.00017321,2]
[364231164,1749046249510,-186.39740406,0.00017321,2]
[364231165,1749046249520,-235.80842164,0.00017446,2]
[364231167,1749046249530,-440.0,0.00017534,2]
[364231169,1749046249539,-440.0,0.00017534,2]
[364231171,1749046249550,-440.0,0.00017534,2]
[364231173,1749046249560,-536.35,0.00017534,2]
[364231175,1749046249570,-440.0,0.00017534,2]
[364231176,1749046249582,-440.0,0.00017534,2]
[364231178,1749046249591,-266.06,0.00017534,2]
[364231180,1749046249601,-440.0,0.00017534,2]
[364231182,1749046249611,-545.55,0.00017534,2]
[364231184,1749046249622,-440.0,0.00017534,2]
[364231186,1749046249632,-568.4,0.00017534,2]
[364231188,1749046249642,-440.0,0.00017534,2]
[364231190,1749046249652,-390.0,0.00017534,2]
[364231192,1749046249661,-440.0,0.00017534,2]
[364231194,1749046249671,-440.0,0.00017534,2]
[364231196,1749046249680,-490.42,0.00017534,2]
[364231198,1749046249691,-440.0,0.00017534,2]
[364231200,1749046249700,-1755.2,0.00017534,2]
[364231202,1749046249711,-440.0,0.00017534,2]
[364231204,1749046249720,-504.12,0.00017534,2]
[364231206,1749046249730,-440.0,0.00017534,2]
[364231208,1749046249741,-953.59,0.00017534,2]
[364231210,1749046249752,-611.02,0.00017534,2]
[364231212,1749046249762,-440.0,0.00017534,2]
[364231214,1749046249772,-440.0,0.00017534,2]
[364231216,1749046249782,-930.87,0.00017534,2]
[364231218,1749046249791,-6729.0,0.00017534,2]
[364231220,1749046249801,-461.21,0.00017534,2]
[364231222,1749046249810,-1855.95,0.00017534,2]
[364231224,1749046249821,-1175.53,0.00017534,2]
[364231226,1749046249832,-2930.48,0.00017534,2]
[364231228,1749046249842,-717.18,0.00017534,2]
[364231230,1749046249852,-689.2,0.00017534,2]
[364231232,1749046249862,-2279.76,0.00017534,2]
[364231234,1749046249871,-2673.95,0.00017534,2]
[364231236,1749046249881,-440.0,0.00017534,2]
[364231238,1749046249890,-440.0,0.00017534,2]
[364231239,1749046249900,-440.0,0.00017534,2]
[364231240,1749046249909,-451.63,0.00017534,2]
[364231241,1749046249919,-467.41,0.00017534,2]
[364231242,1749046249928,-367.42542019,0.00017534,2]
[364231243,1749046249938,-570.25,0.00017534,2]
[364231244,1749046249948,-4255.51,0.00017534,2]
[364231245,1749046249957,-859.44,0.00017534,2]
[364231246,1749046249967,-440.0,0.00017534,2]
[364231247,1749046249977,-440.0,0.00017534,2]
[364231249,1749046249986,-367.02171975,0.00017534,2]
[364231251,1749046249996,-1216.99,0.00017534,2]
[364231253,1749046250006,-440.0,0.00017534,2]
[364231255,1749046250016,-805.47,0.00017534,2]
[364231257,1749046250027,-1432.08,0.00017534,2]
[364231259,1749046250036,-894.27,0.00017534,2]
[364231261,1749046250045,-807.2,0.00017534,2]
[364231263,1749046250055,-2454.92,0.00017534,2]
[364231265,1749046250065,-440.0,0.00017534,2]
[364231267,1749046250077,-400.0,0.00017534,2]
[364231269,1749046250087,-440.0,0.00017534,2]
[364231270,1749046250096,-1500.0,0.00017568,2]
[364231272,1749046250104,-1305.23655106,0.00017777,2]
[364231274,1749046250114,-440.0,0.00017808,2]
[364231276,1749046250123,-440.0,0.00017808,2]
[364231278,1749046250133,-440.0,0.00017808,2]
[364231280,1749046250142,-536.35,0.00017808,2]
[364231282,1749046250151,-390.0,0.00017808,2]
[364231284,1749046250160,-330.66602136,0.00017808,2]
[364231286,1749046250170,-440.0,0.00017808,2]
[364231288,1749046250179,-545.55,0.00017808,2]
[364231290,1749046250189,-440.0,0.00017808,2]
[364231292,1749046250203,-568.4,0.00017808,2]
[364231294,1749046250212,-421.14681798,0.00017808,2]
[364231296,1749046250223,-440.0,0.00017808,2]
[364231298,1749046250238,-440.0,0.00017808,2]
[364231300,1749046250248,-490.42,0.00017808,2]
[364231302,1749046250258,-440.0,0.00017808,2]
[364231304,1749046250269,-1755.2,0.00017808,2]
[364231306,1749046250279,-440.0,0.00017808,2]
[364231308,1749046250288,-504.12,0.00017808,2]
[364231310,1749046250299,-440.0,0.00017808,2]
[364231312,1749046250309,-953.59,0.00017808,2]
[364231314,1749046250319,-611.02,0.00017808,2]
[364231316,1749046250329,-350.0,0.00017808,2]
[364231318,1749046250339,-440.0,0.00017808,2]
[364231320,1749046250348,-930.87,0.00017808,2]
[364231322,1749046250358,-6729.0,0.00017808,2]
[364231324,1749046250367,-461.21,0.00017808,2]
[364231326,1749046250376,-1855.95,0.00017808,2]
[364231328,1749046250386,-1175.53,0.00017808,2]
[364231330,1749046250395,-2930.48,0.00017808,2]
[364231332,1749046250405,-717.18,0.00017808,2]
[364231334,1749046250414,-689.2,0.00017808,2]
[364231336,1749046250423,-2279.76,0.00017808,2]
[364231338,1749046250433,-2673.95,0.00017808,2]
[364231340,1749046250442,-440.0,0.00017808,2]
[364231342,1749046250451,-261.97388845,0.00017808,2]
[364231344,1749046250460,-440.0,0.00017808,2]
[364231346,1749046250469,-467.41,0.00017808,2]
[364231348,1749046250479,-570.25,0.00017808,2]
[364231350,1749046250489,-4255.51,0.00017808,2]
[364231352,1749046250499,-859.44,0.00017808,2]
[364231354,1749046250508,-440.0,0.00017808,2]
[364231356,1749046250518,-440.0,0.00017808,2]
[364231358,1749046250528,-1216.99,0.00017808,2]
[364231360,1749046250538,-440.0,0.00017808,2]
[364231362,1749046250547,-805.47,0.00017808,2]
[364231364,1749046250556,-1432.08,0.00017808,2]
[364231366,1749046250565,-894.27,0.00017808,2]
[364231368,1749046250575,-807.2,0.00017808,2]
[364231370,1749046250585,-2454.92,0.00017808,2]
[364231372,1749046250595,-320.0,0.00017808,2]
[364231374,1749046250605,-319.12,0.00017808,2]
[364231376,1749046250615,-1500.0,0.00017868,2]
[364231378,1749046250626,-5255.56118924,0.000179,2]
[364231380,1749046250636,-420.0,0.00017962,2]
[364231382,1749046250646,-420.0,0.00017962,2]
[364231384,1749046250656,-393.0,0.00018051,2]
[364231386,1749046250665,-440.0,0.00018082,2]
[364231388,1749046250675,-440.0,0.00018082,2]
[364231390,1749046250685,-440.0,0.00018082,2]
[364231392,1749046250695,-536.35,0.00018082,2]
[364231394,1749046250704,-440.0,0.00018082,2]
[364231396,1749046250714,-545.55,0.00018082,2]
[364231398,1749046250724,-440.0,0.00018082,2]
[364231400,1749046250733,-568.4,0.00018082,2]
[364231402,1749046250743,-440.0,0.00018082,2]
[364231404,1749046250752,-440.0,0.00018082,2]
[364231406,1749046250762,-490.42,0.00018082,2]
[364231408,1749046250772,-191.24,0.00018082,2]
[364231410,1749046250781,-1755.2,0.00018082,2]
[364231412,1749046250792,-502.110366,0.00018082,2]
[364231414,1749046250802,-504.12,0.00018082,2]
[364231416,1749046250812,-244.78354762,0.00018082,2]
[364231418,1749046250822,-953.59,0.00018082,2]
[364231420,1749046250832,-611.02,0.00018082,2]
[364231422,1749046250841,-357.54,0.00018082,2]
[364231424,1749046250851,-930.87,0.00018082,2]
[364231426,1749046250860,-6729.0,0.00018082,2]
[364231428,1749046250870,-461.21,0.00018082,2]
[364231430,1749046250880,-1855.95,0.00018082,2]
[364231432,1749046250890,-1175.53,0.00018082,2]
[364231434,1749046250900,-2930.48,0.00018082,2]
[364231436,1749046250909,-717.18,0.00018082,2]
[364231438,1749046250919,-689.2,0.00018082,2]
[364231440,1749046250929,-2279.76,0.00018082,2]
[364231442,1749046250938,-2673.95,0.00018082,2]
[364231444,1749046250948,-440.0,0.00018082,2]
[364231446,1749046250957,-440.0,0.00018082,2]
[364231448,1749046250967,-467.41,0.00018082,2]
[364231450,1749046250977,-570.25,0.00018082,2]
[364231452,1749046250986,-4255.51,0.00018082,2]
[364231454,1749046250996,-859.44,0.00018082,2]
[364231456,1749046251005,-440.0,0.00018082,2]
[364231469,1749046251107,-339.77843173,0.00018082,2]
[364231472,1749046251132,-1216.99,0.00018082,2]
[364231474,1749046251143,-440.0,0.00018082,2]
[364231476,1749046251153,-805.47,0.00018082,2]
[364231478,1749046251163,-1432.08,0.00018082,2]
[364231480,1749046251172,-894.27,0.00018082,2]
[364231482,1749046251181,-807.2,0.00018082,2]
[364231484,1749046251191,-2454.92,0.00018082,2]
[364231486,1749046251200,-1048.39645406,0.00018116,2]
[364231488,1749046251210,-5255.561189,0.00018141,2]
[364231490,1749046251219,-1305.23655106,0.00018256,2]
[364231492,1749046251229,-440.0,0.00018356,2]
[364231494,1749046251241,-440.0,0.00018356,2]
[364231496,1749046251250,-440.0,0.00018356,2]
[364231498,1749046251260,-536.35,0.00018356,2]
[364231500,1749046251269,-440.0,0.00018356,2]
[364231502,1749046251279,-545.55,0.00018356,2]
[364231504,1749046251288,-440.0,0.00018356,2]
[364231506,1749046251298,-568.4,0.00018356,2]
[364231508,1749046251307,-440.0,0.00018356,2]
[364231510,1749046251315,-440.0,0.00018356,2]
[364231512,1749046251327,-490.42,0.00018356,2]
[364231514,1749046251336,-1755.2,0.00018356,2]
[364231516,1749046251345,-504.12,0.00018356,2]
[364231518,1749046251354,-953.59,0.00018356,2]
[364231520,1749046251365,-611.02,0.00018356,2]
[364231522,1749046251375,-930.87,0.00018356,2]
[364231524,1749046251384,-6729.0,0.00018356,2]
[364231526,1749046251393,-461.21,0.00018356,2]
[364231528,1749046251403,-1855.95,0.00018356,2]
[364231530,1749046251412,-1175.53,0.00018356,2]
[364231532,1749046251422,-2930.48,0.00018356,2]
[364231534,1749046251432,-717.18,0.00018356,2]
[364231536,1749046251442,-689.2,0.00018356,2]
[364231538,1749046251451,-2279.76,0.00018356,2]
[364231540,1749046251460,-2673.95,0.00018356,2]
[364231542,1749046251470,-440.0,0.00018356,2]
[364231544,1749046251479,-440.0,0.00018356,2]
[364231547,1749046251490,-467.41,0.00018356,2]
[364231549,1749046251499,-570.25,0.00018356,2]
[364231551,1749046251508,-4255.51,0.00018356,2]
[364231552,1749046251518,-859.44,0.00018356,2]
[364231554,1749046251528,-440.0,0.00018356,2]
[364231556,1749046251537,-1216.99,0.00018356,2]
[364231559,1749046251547,-440.0,0.00018356,2]
[364231561,1749046251557,-805.47,0.00018356,2]
[364231563,1749046251567,-1432.08,0.00018356,2]
[364231565,1749046251577,-894.27,0.00018356,2]
[364231567,1749046251587,-807.2,0.00018356,2]
[364231568,1749046251596,-2454.92,0.00018356,2]
[364231570,1749046251605,-5255.561189,0.00018383,2]
[364231573,1749046251616,-151.0,0.000184,2]
[364231574,1749046251626,-2000.0,0.00018416,2]
[364231576,1749046251635,-3126.8,0.00018541,2]
[364231578,1749046251645,-3126.8,0.00018541,2]
[364231580,1749046251654,-3126.8,0.00018541,2]
[364231582,1749046251664,-3126.8,0.00018541,2]
[364231584,1749046251675,-235.80842164,0.00018555,2]
[364231586,1749046251685,-160.0,0.00018587,2]
[364231588,1749046251694,-160.0,0.00018587,2]
[364231590,1749046251704,-229.45591648,0.00018587,2]
[364231592,1749046251714,-212.90465545,0.00018587,2]
[364231594,1749046251724,-423.69433488,0.00018587,2]
[364231596,1749046251734,-842.5625,0.00018587,2]
[364231598,1749046251744,-12672.94222187,0.00018587,2]
[364231600,1749046251753,-160.0,0.00018587,2]
[364231603,1749046251763,-160.0,0.00018587,2]
[364231604,1749046251773,-160.0,0.00018587,2]
[364231606,1749046251783,-160.0,0.00018587,2]
[364231608,1749046251793,-5255.561189,0.00018624,2]
[364231611,1749046251803,-440.0,0.0001863,2]
[364231612,1749046251813,-370.0,0.0001863,2]
[364231614,1749046251823,-440.0,0.0001863,2]
[364231616,1749046251832,-536.35,0.0001863,2]
[364231618,1749046251842,-440.0,0.0001863,2]
[364231621,1749046251852,-545.55,0.0001863,2]
[364231623,1749046251862,-440.0,0.0001863,2]
[364231624,1749046251871,-568.4,0.0001863,2]
[364231627,1749046251880,-440.0,0.0001863,2]
[364231629,1749046251890,-440.0,0.0001863,2]
[364231631,1749046251900,-1755.2,0.0001863,2]
[364231633,1749046251910,-490.42,0.0001863,2]
[364231635,1749046251920,-504.12,0.0001863,2]
[364231636,1749046251929,-953.59,0.0001863,2]
[364231639,1749046251939,-611.02,0.0001863,2]
[364231640,1749046251949,-930.87,0.0001863,2]
[364231643,1749046251959,-6729.0,0.0001863,2]
[364231645,1749046251969,-461.21,0.0001863,2]
[364231647,1749046251979,-1855.95,0.0001863,2]
[364231648,1749046251988,-1175.53,0.0001863,2]
[364231650,1749046251998,-2930.48,0.0001863,2]
[364231653,1749046252008,-717.18,0.0001863,2]
[364231654,1749046252018,-689.2,0.0001863,2]
[364231656,1749046252027,-2279.76,0.0001863,2]
[364231658,1749046252151,-2673.95,0.0001863,2]
[364231660,1749046252160,-431.40536243,0.0001863,2]
[364231662,1749046252169,-440.0,0.0001863,2]
[364231664,1749046252178,-467.41,0.0001863,2]
[364231666,1749046252187,-570.25,0.0001863,2]
[364231668,1749046252196,-4255.51,0.0001863,2]
[364231670,1749046252206,-859.44,0.0001863,2]
[364231672,1749046252215,-440.0,0.0001863,2]
[364231674,1749046252226,-1216.99,0.0001863,2]
[364231676,1749046252239,-430.83897167,0.0001863,2]
[364231678,1749046252248,-805.47,0.0001863,2]
[364231680,1749046252259,-894.27,0.0001863,2]
[364231682,1749046252268,-1432.08,0.0001863,2]
[364231684,1749046252278,-807.2,0.0001863,2]
[364231686,1749046252287,-2454.92,0.0001863,2]
[364231689,1749046252297,-500.0,0.00018784,2]
[364231691,1749046252306,-500.0,0.00018784,2]
[364231693,1749046252315,-600.0,0.00018784,2]
[364231694,1749046252326,-500.0,0.00018784,2]
[364231697,1749046252335,-5255.561189,0.00018866,2]
[364231699,1749046252345,-500.0,0.00018903,2]
[364231700,1749046252354,-500.0,0.00018903,2]
[364231702,1749046252363,-500.0,0.00018903,2]
[364231704,1749046252372,-281.31067867,0.00018903,2]
[364231706,1749046252381,-500.0,0.00018903,2]
[364231708,1749046252391,-500.0,0.00018903,2]
[364231710,1749046252400,-500.0,0.00018903,2]
[364231712,1749046252409,-500.0,0.00018903,2]
[364231714,1749046252419,-649.29149085,0.00018903,2]
[364231717,1749046252430,-500.0,0.00018903,2]
[364231718,1749046252439,-500.0,0.00018903,2]
[364231720,1749046252450,-500.0,0.00018903,2]
[364231722,1749046252460,-500.0,0.00018903,2]
[364231724,1749046252470,-500.0,0.00018903,2]
[364231726,1749046252479,-500.0,0.00018903,2]
[364231728,1749046252489,-500.0,0.00018903,2]
[364231730,1749046252499,-500.0,0.00018903,2]
[364231732,1749046252509,-500.0,0.00018903,2]
[364231734,1749046252519,-500.0,0.00018903,2]
[364231736,1749046252529,-500.0,0.00018903,2]
[364231738,1749046252541,-500.0,0.00018903,2]
[364231740,1749046252551,-500.0,0.00018903,2]
[364231742,1749046252561,-250.0,0.00018903,2]
[364231744,1749046252571,-340.0,0.00018904,2]
[364231746,1749046252584,-440.0,0.00018904,2]
[364231748,1749046252596,-536.35,0.00018904,2]
[364231750,1749046252606,-440.0,0.00018904,2]
[364231752,1749046252616,-545.55,0.00018904,2]
[364231755,1749046252626,-533.5617678,0.00018904,2]
[364231756,1749046252635,-568.4,0.00018904,2]
[364231759,1749046252646,-440.0,0.00018904,2]
[364231761,1749046252656,-585.09486513,0.00018904,2]
[364231762,1749046252666,-1755.2,0.00018904,2]
[364231765,1749046252676,-490.42,0.00018904,2]
[364231767,1749046252686,-504.12,0.00018904,2]
[364231769,1749046252695,-953.59,0.00018904,2]
[364231771,1749046252711,-611.02,0.00018904,2]
[364231773,1749046252721,-930.87,0.00018904,2]
[364231774,1749046252731,-6729.0,0.00018904,2]
[364231776,1749046252740,-461.21,0.00018904,2]
[364231778,1749046252750,-1855.95,0.00018904,2]
[364231781,1749046252761,-1175.53,0.00018904,2]
[364231783,1749046252772,-2930.48,0.00018904,2]
[364231785,1749046252782,-717.18,0.00018904,2]
[364231787,1749046252793,-689.2,0.00018904,2]
[364231789,1749046252802,-2279.76,0.00018904,2]
[364231791,1749046252812,-2673.95,0.00018904,2]
[364231793,1749046252822,-440.0,0.00018904,2]
[364231795,1749046252839,-467.41,0.00018904,2]
[364231797,1749046252849,-570.25,0.00018904,2]
[364231799,1749046252860,-4255.51,0.00018904,2]
[364231801,1749046252870,-859.44,0.00018904,2]
[364231803,1749046252879,-440.0,0.00018904,2]
[364231805,1749046252889,-1216.99,0.00018904,2]
[364231807,1749046252899,-805.47,0.00018904,2]